{"text_format":"3","workbook":"xlsx","n_sheets":5,"sheets":["Fatura","Clientes","Faturas - Principal","Detalhes da Fatura","Sobre este Control. de Faturas"],"not_rendered":{"defined_names":8},"read":"whole","date_system":"1900"}

{"sheet":"Fatura","index":0,"n_rows":39,"n_cols":7,"rows_kept":39,"merged":[[1,1,1,2],[1,3,1,4],[1,5,1,6],[2,1,2,2],[2,3,2,4],[2,5,2,6],[3,3,3,4],[4,3,4,4],[5,3,5,4],[37,1,37,4],[38,1,38,4]]}
[null,"Nome da Empresa"]
[null,"Endereço",null,"Tlf.: Número de Telefone",null,"E-mail"]
[null,"Código Postal, Localidade",null,"Fax: Número de Fax",null,"Site"]
[null,"Cobrar a:",{"$f":"IFERROR(VLOOKUP(VLOOKUP(rngFatura,FaturasPrincipal[],2,FALSE),ListaDeClientes[],3,TRUE),\"\")","v":"Contoso, Ltd"},{"$f":"\"Telefone: \"&IFERROR(VLOOKUP(VLOOKUP(rngFatura,FaturasPrincipal[],2,FALSE),ListaDeClientes[],9,FALSE),\"\")","v":"Telefone: 20 912 34 56"},null,"N.º da Fatura:","3-456-2"]
[null,"Endereço:",{"$f":"IFERROR(IF((VLOOKUP(VLOOKUP(rngFatura,FaturasPrincipal[],2,FALSE),ListaDeClientes[],5,FALSE))=\"\",\"\",(VLOOKUP(VLOOKUP(rngFatura,FaturasPrincipal[],2,FALSE),ListaDeClientes[],5,FALSE))),\"\")","v":"Rua das Nogueiras N.º 12"},{"$f":"\"Fax:     \"&IFERROR(VLOOKUP(VLOOKUP(rngFatura,FaturasPrincipal[],2,FALSE),ListaDeClientes[],11,FALSE),\"\")","v":"Fax:     21 912 34 78"},null,"Data da Fatura:",{"$f":"IFERROR(IF(VLOOKUP(rngFatura,FaturasPrincipal[],3,FALSE)=\"\",\"\",VLOOKUP(rngFatura,FaturasPrincipal[],3,FALSE)),\"\")","v":{"v":43716,"d":"4371600.00%"}}]
[null,null,{"$f":"IFERROR(VLOOKUP(VLOOKUP(rngFatura,FaturasPrincipal[],2,FALSE),ListaDeClientes[],6,FALSE)&\", \"& VLOOKUP(VLOOKUP(G4,FaturasPrincipal[],2,FALSE),ListaDeClientes[],7,FALSE)&\" \"&VLOOKUP(VLOOKUP(G4,FaturasPrincipal[],2,FALSE),ListaDeClientes[],8,FALSE),\"\")","v":"Abrantes, LIS 098765"},{"$f":"\"E-mail: \"&IFERROR(VLOOKUP(VLOOKUP(rngFatura,FaturasPrincipal[],2,FALSE),ListaDeClientes[],10,FALSE),\"\")","v":"E-mail: alguem@example.com"}]
[null,{"$f":"\"Fatura Para: \"&IFERROR(VLOOKUP(rngFatura,FaturasPrincipal[],4),\"\")","v":"Fatura Para: Projeto 2"}]
[null,"N.º do Item","Descrição","Qtd","Preço Unitário","Desconto","Preço"]
[null,{"$f":"IFERROR(INDEX(DetalhesDaFatura[],SMALL(IF(DetalhesDaFatura[N.º da Fatura]=rngFatura,ROW(DetalhesDaFatura[])-ROW(DetalhesDaFatura[#Headers])), ROW(1:1)), MATCH($B$8, DetalhesDaFatura[#Headers], 0)),\"\")","v":"Z4567"},{"$f":"IFERROR(INDEX(DetalhesDaFatura[],SMALL(IF(DetalhesDaFatura[N.º da Fatura]=rngFatura,ROW(DetalhesDaFatura[])-ROW(DetalhesDaFatura[#Headers])), ROW(1:1)), MATCH($C$8, DetalhesDaFatura[#Headers], 0)),\"\")","v":"Fatura 3-456-2 Dado 1"},{"$f":"IFERROR(INDEX(DetalhesDaFatura[],SMALL(IF(DetalhesDaFatura[N.º da Fatura]=rngFatura,ROW(DetalhesDaFatura[])-ROW(DetalhesDaFatura[#Headers])), ROW(1:1)), MATCH($D$8, DetalhesDaFatura[#Headers], 0)),\"\")","v":39},{"$f":"IFERROR(INDEX(DetalhesDaFatura[],SMALL(IF(DetalhesDaFatura[N.º da Fatura]=rngFatura,ROW(DetalhesDaFatura[])-ROW(DetalhesDaFatura[#Headers])), ROW(1:1)), MATCH($E$8, DetalhesDaFatura[#Headers], 0)),\"\")","v":{"v":5,"d":"5.00 €"}},{"$f":"IFERROR(INDEX(DetalhesDaFatura[],SMALL(IF(DetalhesDaFatura[N.º da Fatura]=rngFatura,ROW(DetalhesDaFatura[])-ROW(DetalhesDaFatura[#Headers])), ROW(1:1)), MATCH($F$8, DetalhesDaFatura[#Headers], 0)),\"\")","v":0},{"$f":"IFERROR((D9*E9)-F9,\"\")","v":{"v":195,"d":"195.00 €"}}]
[null,{"$f":"IFERROR(INDEX(DetalhesDaFatura[],SMALL(IF(DetalhesDaFatura[N.º da Fatura]=rngFatura,ROW(DetalhesDaFatura[])-ROW(DetalhesDaFatura[#Headers])), ROW(2:2)), MATCH($B$8, DetalhesDaFatura[#Headers], 0)),\"\")","v":"Z4568"},{"$f":"IFERROR(INDEX(DetalhesDaFatura[],SMALL(IF(DetalhesDaFatura[N.º da Fatura]=rngFatura,ROW(DetalhesDaFatura[])-ROW(DetalhesDaFatura[#Headers])), ROW(2:2)), MATCH($C$8, DetalhesDaFatura[#Headers], 0)),\"\")","v":"Fatura 3-456-2 Dado 2"},{"$f":"IFERROR(INDEX(DetalhesDaFatura[],SMALL(IF(DetalhesDaFatura[N.º da Fatura]=rngFatura,ROW(DetalhesDaFatura[])-ROW(DetalhesDaFatura[#Headers])), ROW(2:2)), MATCH($D$8, DetalhesDaFatura[#Headers], 0)),\"\")","v":40},{"$f":"IFERROR(INDEX(DetalhesDaFatura[],SMALL(IF(DetalhesDaFatura[N.º da Fatura]=rngFatura,ROW(DetalhesDaFatura[])-ROW(DetalhesDaFatura[#Headers])), ROW(2:2)), MATCH($E$8, DetalhesDaFatura[#Headers], 0)),\"\")","v":{"v":4,"d":"4.00 €"}},{"$f":"IFERROR(INDEX(DetalhesDaFatura[],SMALL(IF(DetalhesDaFatura[N.º da Fatura]=rngFatura,ROW(DetalhesDaFatura[])-ROW(DetalhesDaFatura[#Headers])), ROW(2:2)), MATCH($F$8, DetalhesDaFatura[#Headers], 0)),\"\")","v":{"v":5,"d":"5.00 €"}},{"v":155,"d":"155.00 €"}]
[null,{"$f":"IFERROR(INDEX(DetalhesDaFatura[],SMALL(IF(DetalhesDaFatura[N.º da Fatura]=rngFatura,ROW(DetalhesDaFatura[])-ROW(DetalhesDaFatura[#Headers])), ROW(3:3)), MATCH($B$8, DetalhesDaFatura[#Headers], 0)),\"\")","v":"Z4569"},{"$f":"IFERROR(INDEX(DetalhesDaFatura[],SMALL(IF(DetalhesDaFatura[N.º da Fatura]=rngFatura,ROW(DetalhesDaFatura[])-ROW(DetalhesDaFatura[#Headers])), ROW(3:3)), MATCH($C$8, DetalhesDaFatura[#Headers], 0)),\"\")","v":"Fatura 3-456-2 Dado 3"},{"$f":"IFERROR(INDEX(DetalhesDaFatura[],SMALL(IF(DetalhesDaFatura[N.º da Fatura]=rngFatura,ROW(DetalhesDaFatura[])-ROW(DetalhesDaFatura[#Headers])), ROW(3:3)), MATCH($D$8, DetalhesDaFatura[#Headers], 0)),\"\")","v":30},{"$f":"IFERROR(INDEX(DetalhesDaFatura[],SMALL(IF(DetalhesDaFatura[N.º da Fatura]=rngFatura,ROW(DetalhesDaFatura[])-ROW(DetalhesDaFatura[#Headers])), ROW(3:3)), MATCH($E$8, DetalhesDaFatura[#Headers], 0)),\"\")","v":{"v":6,"d":"6.00 €"}},{"$f":"IFERROR(INDEX(DetalhesDaFatura[],SMALL(IF(DetalhesDaFatura[N.º da Fatura]=rngFatura,ROW(DetalhesDaFatura[])-ROW(DetalhesDaFatura[#Headers])), ROW(3:3)), MATCH($F$8, DetalhesDaFatura[#Headers], 0)),\"\")","v":{"v":7,"d":"7.00 €"}},{"v":173,"d":"173.00 €"}]
[null,{"$f":"IFERROR(INDEX(DetalhesDaFatura[],SMALL(IF(DetalhesDaFatura[N.º da Fatura]=rngFatura,ROW(DetalhesDaFatura[])-ROW(DetalhesDaFatura[#Headers])), ROW(4:4)), MATCH($B$8, DetalhesDaFatura[#Headers], 0)),\"\")","v":"Z4570"},{"$f":"IFERROR(INDEX(DetalhesDaFatura[],SMALL(IF(DetalhesDaFatura[N.º da Fatura]=rngFatura,ROW(DetalhesDaFatura[])-ROW(DetalhesDaFatura[#Headers])), ROW(4:4)), MATCH($C$8, DetalhesDaFatura[#Headers], 0)),\"\")","v":"Fatura 3-456-2 Dado 4"},{"$f":"IFERROR(INDEX(DetalhesDaFatura[],SMALL(IF(DetalhesDaFatura[N.º da Fatura]=rngFatura,ROW(DetalhesDaFatura[])-ROW(DetalhesDaFatura[#Headers])), ROW(4:4)), MATCH($D$8, DetalhesDaFatura[#Headers], 0)),\"\")","v":40},{"$f":"IFERROR(INDEX(DetalhesDaFatura[],SMALL(IF(DetalhesDaFatura[N.º da Fatura]=rngFatura,ROW(DetalhesDaFatura[])-ROW(DetalhesDaFatura[#Headers])), ROW(4:4)), MATCH($E$8, DetalhesDaFatura[#Headers], 0)),\"\")","v":{"v":7,"d":"7.00 €"}},{"$f":"IFERROR(INDEX(DetalhesDaFatura[],SMALL(IF(DetalhesDaFatura[N.º da Fatura]=rngFatura,ROW(DetalhesDaFatura[])-ROW(DetalhesDaFatura[#Headers])), ROW(4:4)), MATCH($F$8, DetalhesDaFatura[#Headers], 0)),\"\")","v":0},{"v":280,"d":"280.00 €"}]
[null,{"$f":"IFERROR(INDEX(DetalhesDaFatura[],SMALL(IF(DetalhesDaFatura[N.º da Fatura]=rngFatura,ROW(DetalhesDaFatura[])-ROW(DetalhesDaFatura[#Headers])), ROW(5:5)), MATCH($B$8, DetalhesDaFatura[#Headers], 0)),\"\")","v":"Z4571"},{"$f":"IFERROR(INDEX(DetalhesDaFatura[],SMALL(IF(DetalhesDaFatura[N.º da Fatura]=rngFatura,ROW(DetalhesDaFatura[])-ROW(DetalhesDaFatura[#Headers])), ROW(5:5)), MATCH($C$8, DetalhesDaFatura[#Headers], 0)),\"\")","v":"Fatura 3-456-2 Dado 5"},{"$f":"IFERROR(INDEX(DetalhesDaFatura[],SMALL(IF(DetalhesDaFatura[N.º da Fatura]=rngFatura,ROW(DetalhesDaFatura[])-ROW(DetalhesDaFatura[#Headers])), ROW(5:5)), MATCH($D$8, DetalhesDaFatura[#Headers], 0)),\"\")","v":10},{"$f":"IFERROR(INDEX(DetalhesDaFatura[],SMALL(IF(DetalhesDaFatura[N.º da Fatura]=rngFatura,ROW(DetalhesDaFatura[])-ROW(DetalhesDaFatura[#Headers])), ROW(5:5)), MATCH($E$8, DetalhesDaFatura[#Headers], 0)),\"\")","v":{"v":4,"d":"4.00 €"}},{"$f":"IFERROR(INDEX(DetalhesDaFatura[],SMALL(IF(DetalhesDaFatura[N.º da Fatura]=rngFatura,ROW(DetalhesDaFatura[])-ROW(DetalhesDaFatura[#Headers])), ROW(5:5)), MATCH($F$8, DetalhesDaFatura[#Headers], 0)),\"\")","v":0},{"v":40,"d":"40.00 €"}]
[null,{"$f":"IFERROR(INDEX(DetalhesDaFatura[],SMALL(IF(DetalhesDaFatura[N.º da Fatura]=rngFatura,ROW(DetalhesDaFatura[])-ROW(DetalhesDaFatura[#Headers])), ROW(6:6)), MATCH($B$8, DetalhesDaFatura[#Headers], 0)),\"\")","v":"Z4572"},{"$f":"IFERROR(INDEX(DetalhesDaFatura[],SMALL(IF(DetalhesDaFatura[N.º da Fatura]=rngFatura,ROW(DetalhesDaFatura[])-ROW(DetalhesDaFatura[#Headers])), ROW(6:6)), MATCH($C$8, DetalhesDaFatura[#Headers], 0)),\"\")","v":"Fatura 3-456-2 Dado 6"},{"$f":"IFERROR(INDEX(DetalhesDaFatura[],SMALL(IF(DetalhesDaFatura[N.º da Fatura]=rngFatura,ROW(DetalhesDaFatura[])-ROW(DetalhesDaFatura[#Headers])), ROW(6:6)), MATCH($D$8, DetalhesDaFatura[#Headers], 0)),\"\")","v":5},{"$f":"IFERROR(INDEX(DetalhesDaFatura[],SMALL(IF(DetalhesDaFatura[N.º da Fatura]=rngFatura,ROW(DetalhesDaFatura[])-ROW(DetalhesDaFatura[#Headers])), ROW(6:6)), MATCH($E$8, DetalhesDaFatura[#Headers], 0)),\"\")","v":{"v":8,"d":"8.00 €"}},{"$f":"IFERROR(INDEX(DetalhesDaFatura[],SMALL(IF(DetalhesDaFatura[N.º da Fatura]=rngFatura,ROW(DetalhesDaFatura[])-ROW(DetalhesDaFatura[#Headers])), ROW(6:6)), MATCH($F$8, DetalhesDaFatura[#Headers], 0)),\"\")","v":0},{"v":40,"d":"40.00 €"}]
[null,{"$f":"IFERROR(INDEX(DetalhesDaFatura[],SMALL(IF(DetalhesDaFatura[N.º da Fatura]=rngFatura,ROW(DetalhesDaFatura[])-ROW(DetalhesDaFatura[#Headers])), ROW(7:7)), MATCH($B$8, DetalhesDaFatura[#Headers], 0)),\"\")","v":"Z4573"},{"$f":"IFERROR(INDEX(DetalhesDaFatura[],SMALL(IF(DetalhesDaFatura[N.º da Fatura]=rngFatura,ROW(DetalhesDaFatura[])-ROW(DetalhesDaFatura[#Headers])), ROW(7:7)), MATCH($C$8, DetalhesDaFatura[#Headers], 0)),\"\")","v":"Fatura 3-456-2 Dado 7"},{"$f":"IFERROR(INDEX(DetalhesDaFatura[],SMALL(IF(DetalhesDaFatura[N.º da Fatura]=rngFatura,ROW(DetalhesDaFatura[])-ROW(DetalhesDaFatura[#Headers])), ROW(7:7)), MATCH($D$8, DetalhesDaFatura[#Headers], 0)),\"\")","v":70},{"$f":"IFERROR(INDEX(DetalhesDaFatura[],SMALL(IF(DetalhesDaFatura[N.º da Fatura]=rngFatura,ROW(DetalhesDaFatura[])-ROW(DetalhesDaFatura[#Headers])), ROW(7:7)), MATCH($E$8, DetalhesDaFatura[#Headers], 0)),\"\")","v":{"v":6,"d":"6.00 €"}},{"$f":"IFERROR(INDEX(DetalhesDaFatura[],SMALL(IF(DetalhesDaFatura[N.º da Fatura]=rngFatura,ROW(DetalhesDaFatura[])-ROW(DetalhesDaFatura[#Headers])), ROW(7:7)), MATCH($F$8, DetalhesDaFatura[#Headers], 0)),\"\")","v":0},{"v":420,"d":"420.00 €"}]
[null,{"$f":"IFERROR(INDEX(DetalhesDaFatura[],SMALL(IF(DetalhesDaFatura[N.º da Fatura]=rngFatura,ROW(DetalhesDaFatura[])-ROW(DetalhesDaFatura[#Headers])), ROW(8:8)), MATCH($B$8, DetalhesDaFatura[#Headers], 0)),\"\")","v":"Z4574"},{"$f":"IFERROR(INDEX(DetalhesDaFatura[],SMALL(IF(DetalhesDaFatura[N.º da Fatura]=rngFatura,ROW(DetalhesDaFatura[])-ROW(DetalhesDaFatura[#Headers])), ROW(8:8)), MATCH($C$8, DetalhesDaFatura[#Headers], 0)),\"\")","v":"Fatura 3-456-2 Dado 8"},{"$f":"IFERROR(INDEX(DetalhesDaFatura[],SMALL(IF(DetalhesDaFatura[N.º da Fatura]=rngFatura,ROW(DetalhesDaFatura[])-ROW(DetalhesDaFatura[#Headers])), ROW(8:8)), MATCH($D$8, DetalhesDaFatura[#Headers], 0)),\"\")","v":25},{"$f":"IFERROR(INDEX(DetalhesDaFatura[],SMALL(IF(DetalhesDaFatura[N.º da Fatura]=rngFatura,ROW(DetalhesDaFatura[])-ROW(DetalhesDaFatura[#Headers])), ROW(8:8)), MATCH($E$8, DetalhesDaFatura[#Headers], 0)),\"\")","v":{"v":4,"d":"4.00 €"}},{"$f":"IFERROR(INDEX(DetalhesDaFatura[],SMALL(IF(DetalhesDaFatura[N.º da Fatura]=rngFatura,ROW(DetalhesDaFatura[])-ROW(DetalhesDaFatura[#Headers])), ROW(8:8)), MATCH($F$8, DetalhesDaFatura[#Headers], 0)),\"\")","v":0},{"v":100,"d":"100.00 €"}]
[null,{"$f":"IFERROR(INDEX(DetalhesDaFatura[],SMALL(IF(DetalhesDaFatura[N.º da Fatura]=rngFatura,ROW(DetalhesDaFatura[])-ROW(DetalhesDaFatura[#Headers])), ROW(9:9)), MATCH($B$8, DetalhesDaFatura[#Headers], 0)),\"\")","v":"Z4575"},{"$f":"IFERROR(INDEX(DetalhesDaFatura[],SMALL(IF(DetalhesDaFatura[N.º da Fatura]=rngFatura,ROW(DetalhesDaFatura[])-ROW(DetalhesDaFatura[#Headers])), ROW(9:9)), MATCH($C$8, DetalhesDaFatura[#Headers], 0)),\"\")","v":"Fatura 3-456-2 Dado 9"},{"$f":"IFERROR(INDEX(DetalhesDaFatura[],SMALL(IF(DetalhesDaFatura[N.º da Fatura]=rngFatura,ROW(DetalhesDaFatura[])-ROW(DetalhesDaFatura[#Headers])), ROW(9:9)), MATCH($D$8, DetalhesDaFatura[#Headers], 0)),\"\")","v":5},{"$f":"IFERROR(INDEX(DetalhesDaFatura[],SMALL(IF(DetalhesDaFatura[N.º da Fatura]=rngFatura,ROW(DetalhesDaFatura[])-ROW(DetalhesDaFatura[#Headers])), ROW(9:9)), MATCH($E$8, DetalhesDaFatura[#Headers], 0)),\"\")","v":{"v":7,"d":"7.00 €"}},{"$f":"IFERROR(INDEX(DetalhesDaFatura[],SMALL(IF(DetalhesDaFatura[N.º da Fatura]=rngFatura,ROW(DetalhesDaFatura[])-ROW(DetalhesDaFatura[#Headers])), ROW(9:9)), MATCH($F$8, DetalhesDaFatura[#Headers], 0)),\"\")","v":{"v":3,"d":"3.00 €"}},{"v":32,"d":"32.00 €"}]
[null,{"$f":"IFERROR(INDEX(DetalhesDaFatura[],SMALL(IF(DetalhesDaFatura[N.º da Fatura]=rngFatura,ROW(DetalhesDaFatura[])-ROW(DetalhesDaFatura[#Headers])), ROW(10:10)), MATCH($B$8, DetalhesDaFatura[#Headers], 0)),\"\")","v":"Z4576"},{"$f":"IFERROR(INDEX(DetalhesDaFatura[],SMALL(IF(DetalhesDaFatura[N.º da Fatura]=rngFatura,ROW(DetalhesDaFatura[])-ROW(DetalhesDaFatura[#Headers])), ROW(10:10)), MATCH($C$8, DetalhesDaFatura[#Headers], 0)),\"\")","v":"Fatura 3-456-2 Dado 10"},{"$f":"IFERROR(INDEX(DetalhesDaFatura[],SMALL(IF(DetalhesDaFatura[N.º da Fatura]=rngFatura,ROW(DetalhesDaFatura[])-ROW(DetalhesDaFatura[#Headers])), ROW(10:10)), MATCH($D$8, DetalhesDaFatura[#Headers], 0)),\"\")","v":80},{"$f":"IFERROR(INDEX(DetalhesDaFatura[],SMALL(IF(DetalhesDaFatura[N.º da Fatura]=rngFatura,ROW(DetalhesDaFatura[])-ROW(DetalhesDaFatura[#Headers])), ROW(10:10)), MATCH($E$8, DetalhesDaFatura[#Headers], 0)),\"\")","v":{"v":1,"d":"1.00 €"}},{"$f":"IFERROR(INDEX(DetalhesDaFatura[],SMALL(IF(DetalhesDaFatura[N.º da Fatura]=rngFatura,ROW(DetalhesDaFatura[])-ROW(DetalhesDaFatura[#Headers])), ROW(10:10)), MATCH($F$8, DetalhesDaFatura[#Headers], 0)),\"\")","v":0},{"v":80,"d":"80.00 €"}]
[null,{"$f":"IFERROR(INDEX(DetalhesDaFatura[],SMALL(IF(DetalhesDaFatura[N.º da Fatura]=rngFatura,ROW(DetalhesDaFatura[])-ROW(DetalhesDaFatura[#Headers])), ROW(11:11)), MATCH($B$8, DetalhesDaFatura[#Headers], 0)),\"\")","v":"Z4577"},{"$f":"IFERROR(INDEX(DetalhesDaFatura[],SMALL(IF(DetalhesDaFatura[N.º da Fatura]=rngFatura,ROW(DetalhesDaFatura[])-ROW(DetalhesDaFatura[#Headers])), ROW(11:11)), MATCH($C$8, DetalhesDaFatura[#Headers], 0)),\"\")","v":"Fatura 3-456-2 Dado 11"},{"$f":"IFERROR(INDEX(DetalhesDaFatura[],SMALL(IF(DetalhesDaFatura[N.º da Fatura]=rngFatura,ROW(DetalhesDaFatura[])-ROW(DetalhesDaFatura[#Headers])), ROW(11:11)), MATCH($D$8, DetalhesDaFatura[#Headers], 0)),\"\")","v":65},{"$f":"IFERROR(INDEX(DetalhesDaFatura[],SMALL(IF(DetalhesDaFatura[N.º da Fatura]=rngFatura,ROW(DetalhesDaFatura[])-ROW(DetalhesDaFatura[#Headers])), ROW(11:11)), MATCH($E$8, DetalhesDaFatura[#Headers], 0)),\"\")","v":{"v":7,"d":"7.00 €"}},{"$f":"IFERROR(INDEX(DetalhesDaFatura[],SMALL(IF(DetalhesDaFatura[N.º da Fatura]=rngFatura,ROW(DetalhesDaFatura[])-ROW(DetalhesDaFatura[#Headers])), ROW(11:11)), MATCH($F$8, DetalhesDaFatura[#Headers], 0)),\"\")","v":0},{"v":455,"d":"455.00 €"}]
[null,{"$f":"IFERROR(INDEX(DetalhesDaFatura[],SMALL(IF(DetalhesDaFatura[N.º da Fatura]=rngFatura,ROW(DetalhesDaFatura[])-ROW(DetalhesDaFatura[#Headers])), ROW(12:12)), MATCH($B$8, DetalhesDaFatura[#Headers], 0)),\"\")","v":"Z4578"},{"$f":"IFERROR(INDEX(DetalhesDaFatura[],SMALL(IF(DetalhesDaFatura[N.º da Fatura]=rngFatura,ROW(DetalhesDaFatura[])-ROW(DetalhesDaFatura[#Headers])), ROW(12:12)), MATCH($C$8, DetalhesDaFatura[#Headers], 0)),\"\")","v":"Fatura 3-456-2 Dado 12"},{"$f":"IFERROR(INDEX(DetalhesDaFatura[],SMALL(IF(DetalhesDaFatura[N.º da Fatura]=rngFatura,ROW(DetalhesDaFatura[])-ROW(DetalhesDaFatura[#Headers])), ROW(12:12)), MATCH($D$8, DetalhesDaFatura[#Headers], 0)),\"\")","v":44},{"$f":"IFERROR(INDEX(DetalhesDaFatura[],SMALL(IF(DetalhesDaFatura[N.º da Fatura]=rngFatura,ROW(DetalhesDaFatura[])-ROW(DetalhesDaFatura[#Headers])), ROW(12:12)), MATCH($E$8, DetalhesDaFatura[#Headers], 0)),\"\")","v":{"v":1,"d":"1.00 €"}},{"$f":"IFERROR(INDEX(DetalhesDaFatura[],SMALL(IF(DetalhesDaFatura[N.º da Fatura]=rngFatura,ROW(DetalhesDaFatura[])-ROW(DetalhesDaFatura[#Headers])), ROW(12:12)), MATCH($F$8, DetalhesDaFatura[#Headers], 0)),\"\")","v":0},{"v":44,"d":"44.00 €"}]
[null,{"$f":"IFERROR(INDEX(DetalhesDaFatura[],SMALL(IF(DetalhesDaFatura[N.º da Fatura]=rngFatura,ROW(DetalhesDaFatura[])-ROW(DetalhesDaFatura[#Headers])), ROW(13:13)), MATCH($B$8, DetalhesDaFatura[#Headers], 0)),\"\")","v":""},{"$f":"IFERROR(INDEX(DetalhesDaFatura[],SMALL(IF(DetalhesDaFatura[N.º da Fatura]=rngFatura,ROW(DetalhesDaFatura[])-ROW(DetalhesDaFatura[#Headers])), ROW(13:13)), MATCH($C$8, DetalhesDaFatura[#Headers], 0)),\"\")","v":""},{"$f":"IFERROR(INDEX(DetalhesDaFatura[],SMALL(IF(DetalhesDaFatura[N.º da Fatura]=rngFatura,ROW(DetalhesDaFatura[])-ROW(DetalhesDaFatura[#Headers])), ROW(13:13)), MATCH($D$8, DetalhesDaFatura[#Headers], 0)),\"\")","v":""},{"$f":"IFERROR(INDEX(DetalhesDaFatura[],SMALL(IF(DetalhesDaFatura[N.º da Fatura]=rngFatura,ROW(DetalhesDaFatura[])-ROW(DetalhesDaFatura[#Headers])), ROW(13:13)), MATCH($E$8, DetalhesDaFatura[#Headers], 0)),\"\")","v":""},{"$f":"IFERROR(INDEX(DetalhesDaFatura[],SMALL(IF(DetalhesDaFatura[N.º da Fatura]=rngFatura,ROW(DetalhesDaFatura[])-ROW(DetalhesDaFatura[#Headers])), ROW(13:13)), MATCH($F$8, DetalhesDaFatura[#Headers], 0)),\"\")","v":""},""]
[null,{"$f":"IFERROR(INDEX(DetalhesDaFatura[],SMALL(IF(DetalhesDaFatura[N.º da Fatura]=rngFatura,ROW(DetalhesDaFatura[])-ROW(DetalhesDaFatura[#Headers])), ROW(14:14)), MATCH($B$8, DetalhesDaFatura[#Headers], 0)),\"\")","v":""},{"$f":"IFERROR(INDEX(DetalhesDaFatura[],SMALL(IF(DetalhesDaFatura[N.º da Fatura]=rngFatura,ROW(DetalhesDaFatura[])-ROW(DetalhesDaFatura[#Headers])), ROW(14:14)), MATCH($C$8, DetalhesDaFatura[#Headers], 0)),\"\")","v":""},{"$f":"IFERROR(INDEX(DetalhesDaFatura[],SMALL(IF(DetalhesDaFatura[N.º da Fatura]=rngFatura,ROW(DetalhesDaFatura[])-ROW(DetalhesDaFatura[#Headers])), ROW(14:14)), MATCH($D$8, DetalhesDaFatura[#Headers], 0)),\"\")","v":""},{"$f":"IFERROR(INDEX(DetalhesDaFatura[],SMALL(IF(DetalhesDaFatura[N.º da Fatura]=rngFatura,ROW(DetalhesDaFatura[])-ROW(DetalhesDaFatura[#Headers])), ROW(14:14)), MATCH($E$8, DetalhesDaFatura[#Headers], 0)),\"\")","v":""},{"$f":"IFERROR(INDEX(DetalhesDaFatura[],SMALL(IF(DetalhesDaFatura[N.º da Fatura]=rngFatura,ROW(DetalhesDaFatura[])-ROW(DetalhesDaFatura[#Headers])), ROW(14:14)), MATCH($F$8, DetalhesDaFatura[#Headers], 0)),\"\")","v":""},""]
[null,{"$f":"IFERROR(INDEX(DetalhesDaFatura[],SMALL(IF(DetalhesDaFatura[N.º da Fatura]=rngFatura,ROW(DetalhesDaFatura[])-ROW(DetalhesDaFatura[#Headers])), ROW(15:15)), MATCH($B$8, DetalhesDaFatura[#Headers], 0)),\"\")","v":""},{"$f":"IFERROR(INDEX(DetalhesDaFatura[],SMALL(IF(DetalhesDaFatura[N.º da Fatura]=rngFatura,ROW(DetalhesDaFatura[])-ROW(DetalhesDaFatura[#Headers])), ROW(15:15)), MATCH($C$8, DetalhesDaFatura[#Headers], 0)),\"\")","v":""},{"$f":"IFERROR(INDEX(DetalhesDaFatura[],SMALL(IF(DetalhesDaFatura[N.º da Fatura]=rngFatura,ROW(DetalhesDaFatura[])-ROW(DetalhesDaFatura[#Headers])), ROW(15:15)), MATCH($D$8, DetalhesDaFatura[#Headers], 0)),\"\")","v":""},{"$f":"IFERROR(INDEX(DetalhesDaFatura[],SMALL(IF(DetalhesDaFatura[N.º da Fatura]=rngFatura,ROW(DetalhesDaFatura[])-ROW(DetalhesDaFatura[#Headers])), ROW(15:15)), MATCH($E$8, DetalhesDaFatura[#Headers], 0)),\"\")","v":""},{"$f":"IFERROR(INDEX(DetalhesDaFatura[],SMALL(IF(DetalhesDaFatura[N.º da Fatura]=rngFatura,ROW(DetalhesDaFatura[])-ROW(DetalhesDaFatura[#Headers])), ROW(15:15)), MATCH($F$8, DetalhesDaFatura[#Headers], 0)),\"\")","v":""},""]
[null,{"$f":"IFERROR(INDEX(DetalhesDaFatura[],SMALL(IF(DetalhesDaFatura[N.º da Fatura]=rngFatura,ROW(DetalhesDaFatura[])-ROW(DetalhesDaFatura[#Headers])), ROW(16:16)), MATCH($B$8, DetalhesDaFatura[#Headers], 0)),\"\")","v":""},{"$f":"IFERROR(INDEX(DetalhesDaFatura[],SMALL(IF(DetalhesDaFatura[N.º da Fatura]=rngFatura,ROW(DetalhesDaFatura[])-ROW(DetalhesDaFatura[#Headers])), ROW(16:16)), MATCH($C$8, DetalhesDaFatura[#Headers], 0)),\"\")","v":""},{"$f":"IFERROR(INDEX(DetalhesDaFatura[],SMALL(IF(DetalhesDaFatura[N.º da Fatura]=rngFatura,ROW(DetalhesDaFatura[])-ROW(DetalhesDaFatura[#Headers])), ROW(16:16)), MATCH($D$8, DetalhesDaFatura[#Headers], 0)),\"\")","v":""},{"$f":"IFERROR(INDEX(DetalhesDaFatura[],SMALL(IF(DetalhesDaFatura[N.º da Fatura]=rngFatura,ROW(DetalhesDaFatura[])-ROW(DetalhesDaFatura[#Headers])), ROW(16:16)), MATCH($E$8, DetalhesDaFatura[#Headers], 0)),\"\")","v":""},{"$f":"IFERROR(INDEX(DetalhesDaFatura[],SMALL(IF(DetalhesDaFatura[N.º da Fatura]=rngFatura,ROW(DetalhesDaFatura[])-ROW(DetalhesDaFatura[#Headers])), ROW(16:16)), MATCH($F$8, DetalhesDaFatura[#Headers], 0)),\"\")","v":""},""]
[null,{"$f":"IFERROR(INDEX(DetalhesDaFatura[],SMALL(IF(DetalhesDaFatura[N.º da Fatura]=rngFatura,ROW(DetalhesDaFatura[])-ROW(DetalhesDaFatura[#Headers])), ROW(17:17)), MATCH($B$8, DetalhesDaFatura[#Headers], 0)),\"\")","v":""},{"$f":"IFERROR(INDEX(DetalhesDaFatura[],SMALL(IF(DetalhesDaFatura[N.º da Fatura]=rngFatura,ROW(DetalhesDaFatura[])-ROW(DetalhesDaFatura[#Headers])), ROW(17:17)), MATCH($C$8, DetalhesDaFatura[#Headers], 0)),\"\")","v":""},{"$f":"IFERROR(INDEX(DetalhesDaFatura[],SMALL(IF(DetalhesDaFatura[N.º da Fatura]=rngFatura,ROW(DetalhesDaFatura[])-ROW(DetalhesDaFatura[#Headers])), ROW(17:17)), MATCH($D$8, DetalhesDaFatura[#Headers], 0)),\"\")","v":""},{"$f":"IFERROR(INDEX(DetalhesDaFatura[],SMALL(IF(DetalhesDaFatura[N.º da Fatura]=rngFatura,ROW(DetalhesDaFatura[])-ROW(DetalhesDaFatura[#Headers])), ROW(17:17)), MATCH($E$8, DetalhesDaFatura[#Headers], 0)),\"\")","v":""},{"$f":"IFERROR(INDEX(DetalhesDaFatura[],SMALL(IF(DetalhesDaFatura[N.º da Fatura]=rngFatura,ROW(DetalhesDaFatura[])-ROW(DetalhesDaFatura[#Headers])), ROW(17:17)), MATCH($F$8, DetalhesDaFatura[#Headers], 0)),\"\")","v":""},""]
[null,{"$f":"IFERROR(INDEX(DetalhesDaFatura[],SMALL(IF(DetalhesDaFatura[N.º da Fatura]=rngFatura,ROW(DetalhesDaFatura[])-ROW(DetalhesDaFatura[#Headers])), ROW(18:18)), MATCH($B$8, DetalhesDaFatura[#Headers], 0)),\"\")","v":""},{"$f":"IFERROR(INDEX(DetalhesDaFatura[],SMALL(IF(DetalhesDaFatura[N.º da Fatura]=rngFatura,ROW(DetalhesDaFatura[])-ROW(DetalhesDaFatura[#Headers])), ROW(18:18)), MATCH($C$8, DetalhesDaFatura[#Headers], 0)),\"\")","v":""},{"$f":"IFERROR(INDEX(DetalhesDaFatura[],SMALL(IF(DetalhesDaFatura[N.º da Fatura]=rngFatura,ROW(DetalhesDaFatura[])-ROW(DetalhesDaFatura[#Headers])), ROW(18:18)), MATCH($D$8, DetalhesDaFatura[#Headers], 0)),\"\")","v":""},{"$f":"IFERROR(INDEX(DetalhesDaFatura[],SMALL(IF(DetalhesDaFatura[N.º da Fatura]=rngFatura,ROW(DetalhesDaFatura[])-ROW(DetalhesDaFatura[#Headers])), ROW(18:18)), MATCH($E$8, DetalhesDaFatura[#Headers], 0)),\"\")","v":""},{"$f":"IFERROR(INDEX(DetalhesDaFatura[],SMALL(IF(DetalhesDaFatura[N.º da Fatura]=rngFatura,ROW(DetalhesDaFatura[])-ROW(DetalhesDaFatura[#Headers])), ROW(18:18)), MATCH($F$8, DetalhesDaFatura[#Headers], 0)),\"\")","v":""},""]
[null,{"$f":"IFERROR(INDEX(DetalhesDaFatura[],SMALL(IF(DetalhesDaFatura[N.º da Fatura]=rngFatura,ROW(DetalhesDaFatura[])-ROW(DetalhesDaFatura[#Headers])), ROW(19:19)), MATCH($B$8, DetalhesDaFatura[#Headers], 0)),\"\")","v":""},{"$f":"IFERROR(INDEX(DetalhesDaFatura[],SMALL(IF(DetalhesDaFatura[N.º da Fatura]=rngFatura,ROW(DetalhesDaFatura[])-ROW(DetalhesDaFatura[#Headers])), ROW(19:19)), MATCH($C$8, DetalhesDaFatura[#Headers], 0)),\"\")","v":""},{"$f":"IFERROR(INDEX(DetalhesDaFatura[],SMALL(IF(DetalhesDaFatura[N.º da Fatura]=rngFatura,ROW(DetalhesDaFatura[])-ROW(DetalhesDaFatura[#Headers])), ROW(19:19)), MATCH($D$8, DetalhesDaFatura[#Headers], 0)),\"\")","v":""},{"$f":"IFERROR(INDEX(DetalhesDaFatura[],SMALL(IF(DetalhesDaFatura[N.º da Fatura]=rngFatura,ROW(DetalhesDaFatura[])-ROW(DetalhesDaFatura[#Headers])), ROW(19:19)), MATCH($E$8, DetalhesDaFatura[#Headers], 0)),\"\")","v":""},{"$f":"IFERROR(INDEX(DetalhesDaFatura[],SMALL(IF(DetalhesDaFatura[N.º da Fatura]=rngFatura,ROW(DetalhesDaFatura[])-ROW(DetalhesDaFatura[#Headers])), ROW(19:19)), MATCH($F$8, DetalhesDaFatura[#Headers], 0)),\"\")","v":""},""]
[null,{"$f":"IFERROR(INDEX(DetalhesDaFatura[],SMALL(IF(DetalhesDaFatura[N.º da Fatura]=rngFatura,ROW(DetalhesDaFatura[])-ROW(DetalhesDaFatura[#Headers])), ROW(20:20)), MATCH($B$8, DetalhesDaFatura[#Headers], 0)),\"\")","v":""},{"$f":"IFERROR(INDEX(DetalhesDaFatura[],SMALL(IF(DetalhesDaFatura[N.º da Fatura]=rngFatura,ROW(DetalhesDaFatura[])-ROW(DetalhesDaFatura[#Headers])), ROW(20:20)), MATCH($C$8, DetalhesDaFatura[#Headers], 0)),\"\")","v":""},{"$f":"IFERROR(INDEX(DetalhesDaFatura[],SMALL(IF(DetalhesDaFatura[N.º da Fatura]=rngFatura,ROW(DetalhesDaFatura[])-ROW(DetalhesDaFatura[#Headers])), ROW(20:20)), MATCH($D$8, DetalhesDaFatura[#Headers], 0)),\"\")","v":""},{"$f":"IFERROR(INDEX(DetalhesDaFatura[],SMALL(IF(DetalhesDaFatura[N.º da Fatura]=rngFatura,ROW(DetalhesDaFatura[])-ROW(DetalhesDaFatura[#Headers])), ROW(20:20)), MATCH($E$8, DetalhesDaFatura[#Headers], 0)),\"\")","v":""},{"$f":"IFERROR(INDEX(DetalhesDaFatura[],SMALL(IF(DetalhesDaFatura[N.º da Fatura]=rngFatura,ROW(DetalhesDaFatura[])-ROW(DetalhesDaFatura[#Headers])), ROW(20:20)), MATCH($F$8, DetalhesDaFatura[#Headers], 0)),\"\")","v":""},""]
[null,{"$f":"IFERROR(INDEX(DetalhesDaFatura[],SMALL(IF(DetalhesDaFatura[N.º da Fatura]=rngFatura,ROW(DetalhesDaFatura[])-ROW(DetalhesDaFatura[#Headers])), ROW(21:21)), MATCH($B$8, DetalhesDaFatura[#Headers], 0)),\"\")","v":""},{"$f":"IFERROR(INDEX(DetalhesDaFatura[],SMALL(IF(DetalhesDaFatura[N.º da Fatura]=rngFatura,ROW(DetalhesDaFatura[])-ROW(DetalhesDaFatura[#Headers])), ROW(21:21)), MATCH($C$8, DetalhesDaFatura[#Headers], 0)),\"\")","v":""},{"$f":"IFERROR(INDEX(DetalhesDaFatura[],SMALL(IF(DetalhesDaFatura[N.º da Fatura]=rngFatura,ROW(DetalhesDaFatura[])-ROW(DetalhesDaFatura[#Headers])), ROW(21:21)), MATCH($D$8, DetalhesDaFatura[#Headers], 0)),\"\")","v":""},{"$f":"IFERROR(INDEX(DetalhesDaFatura[],SMALL(IF(DetalhesDaFatura[N.º da Fatura]=rngFatura,ROW(DetalhesDaFatura[])-ROW(DetalhesDaFatura[#Headers])), ROW(21:21)), MATCH($E$8, DetalhesDaFatura[#Headers], 0)),\"\")","v":""},{"$f":"IFERROR(INDEX(DetalhesDaFatura[],SMALL(IF(DetalhesDaFatura[N.º da Fatura]=rngFatura,ROW(DetalhesDaFatura[])-ROW(DetalhesDaFatura[#Headers])), ROW(21:21)), MATCH($F$8, DetalhesDaFatura[#Headers], 0)),\"\")","v":""},""]
[null,{"$f":"IFERROR(INDEX(DetalhesDaFatura[],SMALL(IF(DetalhesDaFatura[N.º da Fatura]=rngFatura,ROW(DetalhesDaFatura[])-ROW(DetalhesDaFatura[#Headers])), ROW(22:22)), MATCH($B$8, DetalhesDaFatura[#Headers], 0)),\"\")","v":""},{"$f":"IFERROR(INDEX(DetalhesDaFatura[],SMALL(IF(DetalhesDaFatura[N.º da Fatura]=rngFatura,ROW(DetalhesDaFatura[])-ROW(DetalhesDaFatura[#Headers])), ROW(22:22)), MATCH($C$8, DetalhesDaFatura[#Headers], 0)),\"\")","v":""},{"$f":"IFERROR(INDEX(DetalhesDaFatura[],SMALL(IF(DetalhesDaFatura[N.º da Fatura]=rngFatura,ROW(DetalhesDaFatura[])-ROW(DetalhesDaFatura[#Headers])), ROW(22:22)), MATCH($D$8, DetalhesDaFatura[#Headers], 0)),\"\")","v":""},{"$f":"IFERROR(INDEX(DetalhesDaFatura[],SMALL(IF(DetalhesDaFatura[N.º da Fatura]=rngFatura,ROW(DetalhesDaFatura[])-ROW(DetalhesDaFatura[#Headers])), ROW(22:22)), MATCH($E$8, DetalhesDaFatura[#Headers], 0)),\"\")","v":""},{"$f":"IFERROR(INDEX(DetalhesDaFatura[],SMALL(IF(DetalhesDaFatura[N.º da Fatura]=rngFatura,ROW(DetalhesDaFatura[])-ROW(DetalhesDaFatura[#Headers])), ROW(22:22)), MATCH($F$8, DetalhesDaFatura[#Headers], 0)),\"\")","v":""},""]
[null,{"$f":"IFERROR(INDEX(DetalhesDaFatura[],SMALL(IF(DetalhesDaFatura[N.º da Fatura]=rngFatura,ROW(DetalhesDaFatura[])-ROW(DetalhesDaFatura[#Headers])), ROW(23:23)), MATCH($B$8, DetalhesDaFatura[#Headers], 0)),\"\")","v":""},{"$f":"IFERROR(INDEX(DetalhesDaFatura[],SMALL(IF(DetalhesDaFatura[N.º da Fatura]=rngFatura,ROW(DetalhesDaFatura[])-ROW(DetalhesDaFatura[#Headers])), ROW(23:23)), MATCH($C$8, DetalhesDaFatura[#Headers], 0)),\"\")","v":""},{"$f":"IFERROR(INDEX(DetalhesDaFatura[],SMALL(IF(DetalhesDaFatura[N.º da Fatura]=rngFatura,ROW(DetalhesDaFatura[])-ROW(DetalhesDaFatura[#Headers])), ROW(23:23)), MATCH($D$8, DetalhesDaFatura[#Headers], 0)),\"\")","v":""},{"$f":"IFERROR(INDEX(DetalhesDaFatura[],SMALL(IF(DetalhesDaFatura[N.º da Fatura]=rngFatura,ROW(DetalhesDaFatura[])-ROW(DetalhesDaFatura[#Headers])), ROW(23:23)), MATCH($E$8, DetalhesDaFatura[#Headers], 0)),\"\")","v":""},{"$f":"IFERROR(INDEX(DetalhesDaFatura[],SMALL(IF(DetalhesDaFatura[N.º da Fatura]=rngFatura,ROW(DetalhesDaFatura[])-ROW(DetalhesDaFatura[#Headers])), ROW(23:23)), MATCH($F$8, DetalhesDaFatura[#Headers], 0)),\"\")","v":""},""]
[null,{"$f":"IFERROR(INDEX(DetalhesDaFatura[],SMALL(IF(DetalhesDaFatura[N.º da Fatura]=rngFatura,ROW(DetalhesDaFatura[])-ROW(DetalhesDaFatura[#Headers])), ROW(24:24)), MATCH($B$8, DetalhesDaFatura[#Headers], 0)),\"\")","v":""},{"$f":"IFERROR(INDEX(DetalhesDaFatura[],SMALL(IF(DetalhesDaFatura[N.º da Fatura]=rngFatura,ROW(DetalhesDaFatura[])-ROW(DetalhesDaFatura[#Headers])), ROW(24:24)), MATCH($C$8, DetalhesDaFatura[#Headers], 0)),\"\")","v":""},{"$f":"IFERROR(INDEX(DetalhesDaFatura[],SMALL(IF(DetalhesDaFatura[N.º da Fatura]=rngFatura,ROW(DetalhesDaFatura[])-ROW(DetalhesDaFatura[#Headers])), ROW(24:24)), MATCH($D$8, DetalhesDaFatura[#Headers], 0)),\"\")","v":""},{"$f":"IFERROR(INDEX(DetalhesDaFatura[],SMALL(IF(DetalhesDaFatura[N.º da Fatura]=rngFatura,ROW(DetalhesDaFatura[])-ROW(DetalhesDaFatura[#Headers])), ROW(24:24)), MATCH($E$8, DetalhesDaFatura[#Headers], 0)),\"\")","v":""},{"$f":"IFERROR(INDEX(DetalhesDaFatura[],SMALL(IF(DetalhesDaFatura[N.º da Fatura]=rngFatura,ROW(DetalhesDaFatura[])-ROW(DetalhesDaFatura[#Headers])), ROW(24:24)), MATCH($F$8, DetalhesDaFatura[#Headers], 0)),\"\")","v":""},""]
[null,{"$f":"IFERROR(INDEX(DetalhesDaFatura[],SMALL(IF(DetalhesDaFatura[N.º da Fatura]=rngFatura,ROW(DetalhesDaFatura[])-ROW(DetalhesDaFatura[#Headers])), ROW(25:25)), MATCH($B$8, DetalhesDaFatura[#Headers], 0)),\"\")","v":""},{"$f":"IFERROR(INDEX(DetalhesDaFatura[],SMALL(IF(DetalhesDaFatura[N.º da Fatura]=rngFatura,ROW(DetalhesDaFatura[])-ROW(DetalhesDaFatura[#Headers])), ROW(25:25)), MATCH($C$8, DetalhesDaFatura[#Headers], 0)),\"\")","v":""},{"$f":"IFERROR(INDEX(DetalhesDaFatura[],SMALL(IF(DetalhesDaFatura[N.º da Fatura]=rngFatura,ROW(DetalhesDaFatura[])-ROW(DetalhesDaFatura[#Headers])), ROW(25:25)), MATCH($D$8, DetalhesDaFatura[#Headers], 0)),\"\")","v":""},{"$f":"IFERROR(INDEX(DetalhesDaFatura[],SMALL(IF(DetalhesDaFatura[N.º da Fatura]=rngFatura,ROW(DetalhesDaFatura[])-ROW(DetalhesDaFatura[#Headers])), ROW(25:25)), MATCH($E$8, DetalhesDaFatura[#Headers], 0)),\"\")","v":""},{"$f":"IFERROR(INDEX(DetalhesDaFatura[],SMALL(IF(DetalhesDaFatura[N.º da Fatura]=rngFatura,ROW(DetalhesDaFatura[])-ROW(DetalhesDaFatura[#Headers])), ROW(25:25)), MATCH($F$8, DetalhesDaFatura[#Headers], 0)),\"\")","v":""},""]
[{"$nulls":5},"Subtotal da Fatura",{"$f":"SUM(FaturaDoProjeto[Preço])","v":{"v":2014,"d":"2,014.00 €"}}]
[{"$nulls":5},"Taxa de Imposto",{"$f":"VLOOKUP(rngFatura,FaturasPrincipal[],5)","v":{"v":0.0875,"d":"8.75%"}}]
[{"$nulls":5},"Imposto de Venda",{"$f":"G34*G35","v":{"v":176.225,"d":"176.23 €"}}]
[{"$nulls":5},"Outros",{"$f":"VLOOKUP(rngFatura,FaturasPrincipal[],6)","v":0}]
[null,{"$f":"\"Passar todos os cheques à ordem de \"&NomeDaEmpresa&\".\"","v":"Passar todos os cheques à ordem de Nome da Empresa."},{"$nulls":3},"Depósito Recebido",{"$f":"VLOOKUP(rngFatura,FaturasPrincipal[],7)","v":0}]
[null,"Total a pagar dentro de <N.º> dias. São cobradas taxas de serviço de <N.º>% mensais a contas em atraso.",{"$nulls":3},"TOTAL",{"$f":"(G34+G36+G37)-G38","v":{"v":2190.225,"d":"2,190.23 €"}}]

{"sheet":"Clientes","index":1,"n_rows":6,"n_cols":12,"rows_kept":6}
[]
[null,null,"Clientes"]
[null,"Pesquisa","N.º da Empresa","Nome da Empresa","Nome do Contacto","Endereço","Cidade","Distrito","Código Postal","Telefone","E-mail","Fax"]
[null,{"$f":"C4& \" - \"&D4","v":"1 - Tailspin Toys "},1,"Tailspin Toys ","Rogério Freitas","Rua das Alfazemas N.º 321","Sintra","LIS","123456","21 912 34 56","alguem@example.com",2122950166]
[null,"2 - Contoso, Ltd",2,"Contoso, Ltd","Miguel Lopes","Rua das Nogueiras N.º 12","Abrantes","LIS","098765","20 912 34 56","alguem@example.com","21 912 34 78"]
[null,"Totais",{"$f":"\"Total de Clientes: \"&SUBTOTAL(103,ListaDeClientes[N.º da Empresa])","v":"Total de Clientes: 2"}]

{"sheet":"Faturas - Principal","index":2,"n_rows":6,"n_cols":11,"rows_kept":6}
[]
[null,"Faturas"]
[null,"N.º da Fatura","Empresa","Data da Fatura","Descrição do Projeto","Taxa de Imposto","Outros","Depósito","Total dos Detalhes","Total da Fatura","Notas"]
[null,"3-456-1","1 - Tailspin Toys ",{"$f":"TODAY()","v":{"v":43706,"d":"4370600.00%"}},"Projeto 1",{"v":0.0875,"d":"8.75%"},{"v":100,"d":"100.00 €"},{"v":100,"d":"100.00 €"},{"$f":"SUMIF(DetalhesDaFatura[N.º da Fatura],\"=\"&FaturasPrincipal[[#This Row],[N.º da Fatura]],DetalhesDaFatura[Total])","v":{"v":5200,"d":"5,200.00 €"}},{"$f":"(FaturasPrincipal[[#This Row],[Total dos Detalhes]]*(1+FaturasPrincipal[[#This Row],[Taxa de Imposto]]))+FaturasPrincipal[[#This Row],[Outros]]-FaturasPrincipal[[#This Row],[Depósito]]","v":{"v":5654.999999999999,"d":"5,655.00 €"}}]
[null,"3-456-2","2 - Contoso, Ltd",{"$f":"TODAY()+10","v":{"v":43716,"d":"4371600.00%"}},"Projeto 2",{"v":0.0875,"d":"8.75%"},null,null,{"$f":"SUMIF(DetalhesDaFatura[N.º da Fatura],\"=\"&FaturasPrincipal[[#This Row],[N.º da Fatura]],DetalhesDaFatura[Total])","v":{"v":2014,"d":"2,014.00 €"}},{"$f":"(FaturasPrincipal[[#This Row],[Total dos Detalhes]]*(1+FaturasPrincipal[[#This Row],[Taxa de Imposto]]))+FaturasPrincipal[[#This Row],[Outros]]-FaturasPrincipal[[#This Row],[Depósito]]","v":{"v":2190.225,"d":"2,190.23 €"}}]
[null,"Totais",{"$f":"\"Total de Faturas: \"&SUBTOTAL(103,FaturasPrincipal[N.º da Fatura])","v":"Total de Faturas: 2"},{"$nulls":3},{"$f":"SUBTOTAL(109,FaturasPrincipal[Outros])","v":{"v":100,"d":"100.00 €"}},{"$f":"SUBTOTAL(109,FaturasPrincipal[Depósito])","v":{"v":100,"d":"100.00 €"}},{"$f":"SUBTOTAL(109,FaturasPrincipal[Total dos Detalhes])","v":{"v":7214,"d":"7,214.00 €"}},{"$f":"SUBTOTAL(109,FaturasPrincipal[Total da Fatura])","v":{"v":7845.2249999999985,"d":"7,845.23 €"}}]

{"sheet":"Detalhes da Fatura","index":3,"n_rows":40,"n_cols":8,"rows_kept":40}
[]
[null,"Detalhes da Fatura"]
[null,"Descrição","N.º da Fatura","N.º do Item","Qtd","Preço Unitário","Desconto","Total"]
[null,"Fatura 3-456-1 Dado 1","3-456-1",1,1,{"v":1,"d":"1.00 €"},{"v":1,"d":"1.00 €"},{"$f":"(DetalhesDaFatura[[#This Row],[Qtd]]*DetalhesDaFatura[[#This Row],[Preço Unitário]])-DetalhesDaFatura[[#This Row],[Desconto]]","v":{"v":0,"d":"0.00 €"}}]
[null,"Fatura 3-456-1 Dado 2","3-456-1",2,2,{"v":2,"d":"2.00 €"},{"v":2,"d":"2.00 €"},{"$f":"(DetalhesDaFatura[[#This Row],[Qtd]]*DetalhesDaFatura[[#This Row],[Preço Unitário]])-DetalhesDaFatura[[#This Row],[Desconto]]","v":{"v":2,"d":"2.00 €"}}]
[null,"Fatura 3-456-1 Dado 3","3-456-1",3,3,{"v":3,"d":"3.00 €"},{"v":3,"d":"3.00 €"},{"$f":"(DetalhesDaFatura[[#This Row],[Qtd]]*DetalhesDaFatura[[#This Row],[Preço Unitário]])-DetalhesDaFatura[[#This Row],[Desconto]]","v":{"v":6,"d":"6.00 €"}}]
[null,"Fatura 3-456-1 Dado 4","3-456-1",4,4,{"v":4,"d":"4.00 €"},{"v":4,"d":"4.00 €"},{"$f":"(DetalhesDaFatura[[#This Row],[Qtd]]*DetalhesDaFatura[[#This Row],[Preço Unitário]])-DetalhesDaFatura[[#This Row],[Desconto]]","v":{"v":12,"d":"12.00 €"}}]
[null,"Fatura 3-456-1 Dado 5","3-456-1",5,5,{"v":5,"d":"5.00 €"},{"v":5,"d":"5.00 €"},{"$f":"(DetalhesDaFatura[[#This Row],[Qtd]]*DetalhesDaFatura[[#This Row],[Preço Unitário]])-DetalhesDaFatura[[#This Row],[Desconto]]","v":{"v":20,"d":"20.00 €"}}]
[null,"Fatura 3-456-1 Dado 6","3-456-1",6,6,{"v":6,"d":"6.00 €"},{"v":6,"d":"6.00 €"},{"$f":"(DetalhesDaFatura[[#This Row],[Qtd]]*DetalhesDaFatura[[#This Row],[Preço Unitário]])-DetalhesDaFatura[[#This Row],[Desconto]]","v":{"v":30,"d":"30.00 €"}}]
[null,"Fatura 3-456-1 Dado 7","3-456-1",7,7,{"v":7,"d":"7.00 €"},{"v":7,"d":"7.00 €"},{"$f":"(DetalhesDaFatura[[#This Row],[Qtd]]*DetalhesDaFatura[[#This Row],[Preço Unitário]])-DetalhesDaFatura[[#This Row],[Desconto]]","v":{"v":42,"d":"42.00 €"}}]
[null,"Fatura 3-456-1 Dado 8","3-456-1",8,8,{"v":8,"d":"8.00 €"},{"v":8,"d":"8.00 €"},{"$f":"(DetalhesDaFatura[[#This Row],[Qtd]]*DetalhesDaFatura[[#This Row],[Preço Unitário]])-DetalhesDaFatura[[#This Row],[Desconto]]","v":{"v":56,"d":"56.00 €"}}]
[null,"Fatura 3-456-1 Dado 9","3-456-1",9,9,{"v":9,"d":"9.00 €"},{"v":9,"d":"9.00 €"},{"$f":"(DetalhesDaFatura[[#This Row],[Qtd]]*DetalhesDaFatura[[#This Row],[Preço Unitário]])-DetalhesDaFatura[[#This Row],[Desconto]]","v":{"v":72,"d":"72.00 €"}}]
[null,"Fatura 3-456-1 Dado 10","3-456-1",10,10,{"v":10,"d":"10.00 €"},{"v":10,"d":"10.00 €"},{"$f":"(DetalhesDaFatura[[#This Row],[Qtd]]*DetalhesDaFatura[[#This Row],[Preço Unitário]])-DetalhesDaFatura[[#This Row],[Desconto]]","v":{"v":90,"d":"90.00 €"}}]
[null,"Fatura 3-456-1 Dado 11","3-456-1",11,11,{"v":11,"d":"11.00 €"},{"v":11,"d":"11.00 €"},{"$f":"(DetalhesDaFatura[[#This Row],[Qtd]]*DetalhesDaFatura[[#This Row],[Preço Unitário]])-DetalhesDaFatura[[#This Row],[Desconto]]","v":{"v":110,"d":"110.00 €"}}]
[null,"Fatura 3-456-1 Dado 12","3-456-1",12,12,{"v":12,"d":"12.00 €"},{"v":12,"d":"12.00 €"},{"$f":"(DetalhesDaFatura[[#This Row],[Qtd]]*DetalhesDaFatura[[#This Row],[Preço Unitário]])-DetalhesDaFatura[[#This Row],[Desconto]]","v":{"v":132,"d":"132.00 €"}}]
[null,"Fatura 3-456-1 Dado 13","3-456-1",13,13,{"v":13,"d":"13.00 €"},{"v":13,"d":"13.00 €"},{"$f":"(DetalhesDaFatura[[#This Row],[Qtd]]*DetalhesDaFatura[[#This Row],[Preço Unitário]])-DetalhesDaFatura[[#This Row],[Desconto]]","v":{"v":156,"d":"156.00 €"}}]
[null,"Fatura 3-456-1 Dado 14","3-456-1",14,14,{"v":14,"d":"14.00 €"},{"v":14,"d":"14.00 €"},{"$f":"(DetalhesDaFatura[[#This Row],[Qtd]]*DetalhesDaFatura[[#This Row],[Preço Unitário]])-DetalhesDaFatura[[#This Row],[Desconto]]","v":{"v":182,"d":"182.00 €"}}]
[null,"Fatura 3-456-1 Dado 15","3-456-1",15,15,{"v":15,"d":"15.00 €"},{"v":15,"d":"15.00 €"},{"$f":"(DetalhesDaFatura[[#This Row],[Qtd]]*DetalhesDaFatura[[#This Row],[Preço Unitário]])-DetalhesDaFatura[[#This Row],[Desconto]]","v":{"v":210,"d":"210.00 €"}}]
[null,"Fatura 3-456-1 Dado 16","3-456-1",16,16,{"v":16,"d":"16.00 €"},{"v":16,"d":"16.00 €"},{"$f":"(DetalhesDaFatura[[#This Row],[Qtd]]*DetalhesDaFatura[[#This Row],[Preço Unitário]])-DetalhesDaFatura[[#This Row],[Desconto]]","v":{"v":240,"d":"240.00 €"}}]
[null,"Fatura 3-456-1 Dado 17","3-456-1",17,17,{"v":17,"d":"17.00 €"},{"v":17,"d":"17.00 €"},{"$f":"(DetalhesDaFatura[[#This Row],[Qtd]]*DetalhesDaFatura[[#This Row],[Preço Unitário]])-DetalhesDaFatura[[#This Row],[Desconto]]","v":{"v":272,"d":"272.00 €"}}]
[null,"Fatura 3-456-1 Dado 18","3-456-1",18,18,{"v":18,"d":"18.00 €"},{"v":18,"d":"18.00 €"},{"$f":"(DetalhesDaFatura[[#This Row],[Qtd]]*DetalhesDaFatura[[#This Row],[Preço Unitário]])-DetalhesDaFatura[[#This Row],[Desconto]]","v":{"v":306,"d":"306.00 €"}}]
[null,"Fatura 3-456-1 Dado 19","3-456-1",19,19,{"v":19,"d":"19.00 €"},{"v":19,"d":"19.00 €"},{"$f":"(DetalhesDaFatura[[#This Row],[Qtd]]*DetalhesDaFatura[[#This Row],[Preço Unitário]])-DetalhesDaFatura[[#This Row],[Desconto]]","v":{"v":342,"d":"342.00 €"}}]
[null,"Fatura 3-456-1 Dado 20","3-456-1",20,20,{"v":20,"d":"20.00 €"},{"v":20,"d":"20.00 €"},{"$f":"(DetalhesDaFatura[[#This Row],[Qtd]]*DetalhesDaFatura[[#This Row],[Preço Unitário]])-DetalhesDaFatura[[#This Row],[Desconto]]","v":{"v":380,"d":"380.00 €"}}]
[null,"Fatura 3-456-1 Dado 21","3-456-1",21,21,{"v":21,"d":"21.00 €"},{"v":21,"d":"21.00 €"},{"$f":"(DetalhesDaFatura[[#This Row],[Qtd]]*DetalhesDaFatura[[#This Row],[Preço Unitário]])-DetalhesDaFatura[[#This Row],[Desconto]]","v":{"v":420,"d":"420.00 €"}}]
[null,"Fatura 3-456-1 Dado 22","3-456-1",22,22,{"v":22,"d":"22.00 €"},{"v":22,"d":"22.00 €"},{"$f":"(DetalhesDaFatura[[#This Row],[Qtd]]*DetalhesDaFatura[[#This Row],[Preço Unitário]])-DetalhesDaFatura[[#This Row],[Desconto]]","v":{"v":462,"d":"462.00 €"}}]
[null,"Fatura 3-456-1 Dado 23","3-456-1",23,23,{"v":23,"d":"23.00 €"},{"v":23,"d":"23.00 €"},{"$f":"(DetalhesDaFatura[[#This Row],[Qtd]]*DetalhesDaFatura[[#This Row],[Preço Unitário]])-DetalhesDaFatura[[#This Row],[Desconto]]","v":{"v":506,"d":"506.00 €"}}]
[null,"Fatura 3-456-1 Dado 24","3-456-1",24,24,{"v":24,"d":"24.00 €"},{"v":24,"d":"24.00 €"},{"$f":"(DetalhesDaFatura[[#This Row],[Qtd]]*DetalhesDaFatura[[#This Row],[Preço Unitário]])-DetalhesDaFatura[[#This Row],[Desconto]]","v":{"v":552,"d":"552.00 €"}}]
[null,"Fatura 3-456-1 Dado 25","3-456-1",25,25,{"v":25,"d":"25.00 €"},{"v":25,"d":"25.00 €"},{"$f":"(DetalhesDaFatura[[#This Row],[Qtd]]*DetalhesDaFatura[[#This Row],[Preço Unitário]])-DetalhesDaFatura[[#This Row],[Desconto]]","v":{"v":600,"d":"600.00 €"}}]
[null,"Fatura 3-456-2 Dado 1","3-456-2","Z4567",39,{"v":5,"d":"5.00 €"},null,{"$f":"(DetalhesDaFatura[[#This Row],[Qtd]]*DetalhesDaFatura[[#This Row],[Preço Unitário]])-DetalhesDaFatura[[#This Row],[Desconto]]","v":{"v":195,"d":"195.00 €"}}]
[null,"Fatura 3-456-2 Dado 2","3-456-2","Z4568",40,{"v":4,"d":"4.00 €"},{"v":5,"d":"5.00 €"},{"$f":"(DetalhesDaFatura[[#This Row],[Qtd]]*DetalhesDaFatura[[#This Row],[Preço Unitário]])-DetalhesDaFatura[[#This Row],[Desconto]]","v":{"v":155,"d":"155.00 €"}}]
[null,"Fatura 3-456-2 Dado 3","3-456-2","Z4569",30,{"v":6,"d":"6.00 €"},{"v":7,"d":"7.00 €"},{"$f":"(DetalhesDaFatura[[#This Row],[Qtd]]*DetalhesDaFatura[[#This Row],[Preço Unitário]])-DetalhesDaFatura[[#This Row],[Desconto]]","v":{"v":173,"d":"173.00 €"}}]
[null,"Fatura 3-456-2 Dado 4","3-456-2","Z4570",40,{"v":7,"d":"7.00 €"},null,{"$f":"(DetalhesDaFatura[[#This Row],[Qtd]]*DetalhesDaFatura[[#This Row],[Preço Unitário]])-DetalhesDaFatura[[#This Row],[Desconto]]","v":{"v":280,"d":"280.00 €"}}]
[null,"Fatura 3-456-2 Dado 5","3-456-2","Z4571",10,{"v":4,"d":"4.00 €"},null,{"$f":"(DetalhesDaFatura[[#This Row],[Qtd]]*DetalhesDaFatura[[#This Row],[Preço Unitário]])-DetalhesDaFatura[[#This Row],[Desconto]]","v":{"v":40,"d":"40.00 €"}}]
[null,"Fatura 3-456-2 Dado 6","3-456-2","Z4572",5,{"v":8,"d":"8.00 €"},null,{"$f":"(DetalhesDaFatura[[#This Row],[Qtd]]*DetalhesDaFatura[[#This Row],[Preço Unitário]])-DetalhesDaFatura[[#This Row],[Desconto]]","v":{"v":40,"d":"40.00 €"}}]
[null,"Fatura 3-456-2 Dado 7","3-456-2","Z4573",70,{"v":6,"d":"6.00 €"},null,{"$f":"(DetalhesDaFatura[[#This Row],[Qtd]]*DetalhesDaFatura[[#This Row],[Preço Unitário]])-DetalhesDaFatura[[#This Row],[Desconto]]","v":{"v":420,"d":"420.00 €"}}]
[null,"Fatura 3-456-2 Dado 8","3-456-2","Z4574",25,{"v":4,"d":"4.00 €"},null,{"$f":"(DetalhesDaFatura[[#This Row],[Qtd]]*DetalhesDaFatura[[#This Row],[Preço Unitário]])-DetalhesDaFatura[[#This Row],[Desconto]]","v":{"v":100,"d":"100.00 €"}}]
[null,"Fatura 3-456-2 Dado 9","3-456-2","Z4575",5,{"v":7,"d":"7.00 €"},{"v":3,"d":"3.00 €"},{"$f":"(DetalhesDaFatura[[#This Row],[Qtd]]*DetalhesDaFatura[[#This Row],[Preço Unitário]])-DetalhesDaFatura[[#This Row],[Desconto]]","v":{"v":32,"d":"32.00 €"}}]
[null,"Fatura 3-456-2 Dado 10","3-456-2","Z4576",80,{"v":1,"d":"1.00 €"},null,{"$f":"(DetalhesDaFatura[[#This Row],[Qtd]]*DetalhesDaFatura[[#This Row],[Preço Unitário]])-DetalhesDaFatura[[#This Row],[Desconto]]","v":{"v":80,"d":"80.00 €"}}]
[null,"Fatura 3-456-2 Dado 11","3-456-2","Z4577",65,{"v":7,"d":"7.00 €"},null,{"$f":"(DetalhesDaFatura[[#This Row],[Qtd]]*DetalhesDaFatura[[#This Row],[Preço Unitário]])-DetalhesDaFatura[[#This Row],[Desconto]]","v":{"v":455,"d":"455.00 €"}}]
[null,"Fatura 3-456-2 Dado 12","3-456-2","Z4578",44,{"v":1,"d":"1.00 €"},null,{"$f":"(DetalhesDaFatura[[#This Row],[Qtd]]*DetalhesDaFatura[[#This Row],[Preço Unitário]])-DetalhesDaFatura[[#This Row],[Desconto]]","v":{"v":44,"d":"44.00 €"}}]

{"sheet":"Sobre este Control. de Faturas","index":4,"n_rows":40,"n_cols":3,"rows_kept":40,"merged":[[3,1,3,7],[4,1,4,7],[5,1,5,7],[6,1,6,7],[7,2,7,7],[8,2,8,7],[9,2,9,7],[10,2,10,7],[11,2,11,7],[12,1,12,7],[13,2,13,3],[14,2,14,7],[15,1,15,7],[16,2,16,7],[17,2,17,7],[18,2,18,7],[19,2,19,7],[20,2,20,7],[21,2,21,7],[22,1,22,7],[23,1,23,7],[24,2,24,7],[25,2,25,7],[26,2,26,7],[27,2,27,7],[28,1,28,7],[29,1,29,7],[30,2,30,7],[31,2,31,7],[32,2,32,7],[33,2,33,7],[34,2,34,7],[36,2,36,7],[37,2,37,7],[38,2,38,7],[39,2,39,7]]}
[null,"Sobre este Control. de Faturas"]
[]
[]
[null,"Este Controlador de Faturas foi concebido para manter um histórico de clientes, faturas e detalhes de faturas para que possa armazenar várias faturas sem criar ficheiros múltiplos. Também pode utilizar o Controlador de Faturas para analisar os dados de faturações anteriores. Por exemplo, pode ver todas as faturas de um cliente, de um projeto específico, ou todas as faturas do mês anterior, do último ano e muito mais."]
[null,"Antes de começar, veja os dados de exemplo fornecidos. Na folha Fatura, selecione a célula à direita do N.º da Fatura (célula L8) e será apresentada uma lista pendente. Selecione a seta pendente e, em seguida, selecione uma fatura de exemplo. Repare como todos os dados da fatura mudam automaticamente para refletir a fatura selecionada. Agora, veja as folhas Clientes, Faturas - Principal e Detalhes da Fatura. Cada uma destas folhas fornece informações à Fatura e todas as alterações que fizer serão atualizadas automaticamente. "]
[null,"Como posso começar?"]
[null,"Modifique a folha Fatura de forma a refletir as informações da sua empresa através dos seguintes passos:"]
[null,"1.","Navegue até à folha Fatura e, no separador Rever, no grupo Proteger, selecione Desproteger Folha. "]
[null,null,"Nota: A folha de faturas está protegida para evitar alterações não intencionais, uma vez que, conforme mencionado anteriormente, a maior parte dos dados nesta folha são obtidos a partir de todas as outras folhas no livro. "]
[null,"2.","Personalize o cabeçalho da fatura ao introduzir o Nome da sua Empresa, Endereço, Cidade, Código Postal, endereço de e-mail, site, etc. Na parte inferior da fatura (linha 43), modifique as instruções de pagamento. "]
[null,null,"Importante! Não modifique as informações de faturação ou de fatura. Todas estas células têm fórmulas que irão atualizar automaticamente a fatura, conforme indicado na secção Sobre este Control. de Faturas.  "]
[null,"3.","(Opcional) Modifique as cores em todo o livro: No separador Esquema da Página, no grupo Temas, selecione Cores e escolha outro conjunto de cor do tema a partir da galeria de cores. "]
[null,"Sugestão: Crie uma cor de tema personalizada que combine com a marca da sua empresa! Para tal, no separador Esquema da Página, no grupo Temas, selecione Cores e, em seguida, selecione  Personalizar Cores. Para mais informações sobre como criar um conjunto de cores personalizado, consulte o seguinte tópico de Ajuda: "]
[null,null,"Personalize um tema do documento."]
[null,"4.","Depois de efetuar as alterações pretendidas, volte à folha Fatura e, no separador Rever, no grupo Alterações, selecione Proteger Folha e, em seguida, selecione OK. Se a folha de fatura estiver protegida, a única célula que pode selecionar é a célula com o menu pendente do N.º da Fatura."]
[null,"Como posso criar uma fatura?"]
[null,"1.","Na folha Clientes, introduza as informações sobre o cliente, tal como o nome e endereço da empresa. Tenha em atenção que o N.º da Empresa é uma entrada importante, uma vez que fornece um identificador exclusivo para cada empresa utilizada em todo o Controlador de Faturas. Tenha também em atenção que só precisa de adicionar uma empresa uma vez. Para emitir faturas subsequentes à mesma empresa, este passo pode ser ignorado. "]
[null,null,"Nota: Se atribuir o mesmo número a mais de uma Empresa ou introduzir o mesmo Nome de Empresa mais de uma vez, as entradas sertão realçadas a vermelho para o alertar sobre a duplicação. "]
[null,"2.","Na folha Faturas - Principal, introduza os dados principais da sua fatura como, por exemplo, o N.º da Fatura, a Data da Fatura e a Descrição do Projeto. Tal como o N.º da Empresa, o N.º da Fatura é uma entrada importante, uma vez que fornece um identificador exclusivo para cada fatura e é utilizada em todo o Controlador de Faturas. Outra entrada importante é a Empresa. Quando seleciona uma empresa a partir do menu pendente fornecido, a sua fatura é associada a essa empresa. Em seguida, quando seleciona um N.º da Fatura na folha Fatura, as informações da empresa, tais como o nome e endereço da empresa, serão preenchidas automaticamente na Fatura."]
[null,null,"Nota: Se atribuir o mesmo número a mais do que uma fatura, as entradas sertão realçadas a vermelho para o alertar sobre a duplicação. "]
[null,"3.","Na folha Detalhes da Fatura, introduza os detalhes da sua fatura, como uma Descrição do Item, N.º do Item, Qtd. e Preço Unitário. O menu pendente do N.º da Fatura fornece uma lista de faturas introduzidas na folha Faturas - Principal para facilitar a introdução de dados. De forma semelhante ao N.º da Empresa no passo anterior, o N.º da Fatura associa esse item de detalhe a uma determinada fatura. Ao selecionar um N.º da Fatura na folha Fatura a partir do menu pendente N.º da Fatura, os itens de detalhes relacionados da fatura serão apresentados nessa fatura."]
[null,null,"Nota: Existe um limite de 25 itens de detalhes por fatura. Se forem adicionados mais de 25 itens, todas as entradas correspondentes serão realçadas a vermelho para o alertar para essa limitação. Se tiver mais de 25 itens de fatura, terá de criar uma segunda fatura. "]
[null,"Como posso adicionar mais clientes, faturas e detalhes da fatura?"]
[null,"Os dados para Clientes, Faturas e Detalhes da Fatura são armazenados em tabelas do Excel. Quando adicionar uma nova linha a uma tabela, a linha recém-adicionada será formatada automaticamente e os cálculos serão copiados. Para adicionar novas linhas de tabela, efetue um dos seguintes passos:"]
[null,"● ","Se a tabela não tiver uma linha Total, comece a escrever por baixo da tabela e esta será automaticamente expandida quando premir a tecla Enter ou a tecla de Tabulação."]
[null,"● ","Coloque o ponteiro da célula na última célula acima da linha Total, tal como na tabela Faturas, na célula Notas para a última fatura e, em seguida, prima a tecla de Tabulação."]
[null,"● ","No separador Base, no grupo Células, selecione Inserir, e, em seguida, selecione Linhas de Tabela  Em Acima ou Linhas de Tabela Abaixo. "]
[null,"● ","No canto inferior direito da tabela, coloque o rato sobre a alça de redimensionamento da tabela e arraste para baixo para aumentar o número de linhas da tabela disponíveis."]
[null,"Como posso analisar os detalhes da minha fatura?"]
[null,"Conforme indicado na secção \"Sobre o Controlador de Faturas\", após ter introduzido várias faturas, pode ver uma lista de todas as faturas de um cliente específico, projeto, intervalo de datas específico e muito mais. Este tipo de análise é realizado através de um filtro que lhe permite restringir rapidamente uma lista de dados. Para aceder a um Filtro nas tabelas Clientes, Faturas ou Detalhes da Fatura, selecione uma seta pendente junto ao nome de um campo de tabela. Será apresentado um painel de Filtros que lhe oferece uma variedade de opções de filtragem. Eis alguns exemplos de filtragem para ajudá-lo a começar:"]
[null,"● ","Para ver o montante total faturado a um cliente específico: Na folha Faturas - Principal, à direita do campo N.º da Empresa, selecione a seta pendente. No painel de Filtro, clique em Selecionar Tudo para desselecionar todas as empresas, selecione a empresa pretendida e, em seguida, selecione OK. "]
[null,null,"Sugestão: No painel de Filtrar, também pode introduzir o nome do cliente na caixa de texto Procurar para pesquisar rapidamente a lista disponível."]
[null,"● ","Para ver todas as faturas de um determinado cliente e de projetos específicos: Comece por filtrar o seu cliente pretendido através dos passos indicados no exemplo anterior. Em seguida, à direita do N.º do Projeto, selecione a seta pendente. No painel de Filtro, selecione os projetos pretendidos e, em seguida, selecione OK. "]
[null,"● ","Para ver todas as faturas do mês anterior: Na folha Faturas - Principal, à direita do campo Data da Fatura, selecione a seta pendente, aponte para Filtros de Data e, em seguida, selecione Último Mês."]
[null,"● ","Para ver todos os clientes com o mesmo indicativo: Na folha Clientes, à direita do campo Telefone, selecione a seta pendente. No painel de Filtro, clique na caixa de texto de Procurar, escreva o indicativo e, em seguida, selecione OK. "]
[null,"Sugestões de Filtragem"]
[null,"● ","Se uma tabela tiver uma linha total, como Clientes e Faturas, os totais calculados irão refletir apenas a sua lista filtrada."]
[null,"● ","Utilize múltiplos filtros num único campo ou em múltiplos campos para ajustar os seus resultados."]
[null,"● ","Para limpar um único filtro, selecione a seta pendente de uma coluna filtrada anteriormente e, em seguida, selecione Limpar Filtro de <nome do campo >."]
[null,"● ","Para limpar vários filtros ao mesmo tempo, coloque o ponteiro da célula na tabela, no separador Base, no grupo Editção, selecione Ordenar e Filtrar e, em seguida, selecione Limpar."]